fUST/lending_fUST_20250730
["ID","MTS","AMOUNT","RATE_DAILY","PERIOD"]
[376164187,1753881046854,-1478.72,0.00019916,2]
[376164189,1753881046864,-2853.84,0.00019916,2]
[376164191,1753881046873,-475.09,0.00019916,2]
[376164193,1753881046883,-460.0,0.00019916,2]
[376164195,1753881046892,-623.86,0.00019916,2]
[376164197,1753881046902,-460.0,0.00019916,2]
[376164199,1753881046911,-460.0,0.00019916,2]
[376164201,1753881046921,-460.0,0.00019916,2]
[376164203,1753881046930,-406.28697748,0.00019916,2]
[376164205,1753881046940,-460.0,0.00019916,2]
[376164207,1753881046949,-444.59,0.00019916,2]
[376164209,1753881046958,-460.0,0.00019916,2]
[376164211,1753881046968,-460.0,0.00019916,2]
[376164213,1753881046977,-460.0,0.00019916,2]
[376164215,1753881046986,-460.0,0.00019916,2]
[376164217,1753881046995,-460.0,0.00019917,2]
[376164219,1753881047005,-576.18931405,0.00019917,2]
[376164221,1753881047014,-460.0,0.00019917,2]
[376164223,1753881047024,-460.0,0.00019917,2]
[376164225,1753881047035,-151.0,0.00019918,2]
[376164227,1753881047044,-167.58134,0.00019918,2]
[376164229,1753881047054,-151.0,0.00019918,2]
[376164231,1753881047063,-167.58134,0.00019918,2]
[376164233,1753881047074,-151.0,0.00019918,2]
[376164235,1753881047084,-151.0,0.00019918,2]
[376164237,1753881047093,-151.0,0.00019918,2]
[376164239,1753881047102,-460.0,0.00019918,2]
[376164241,1753881047111,-460.0,0.00019918,2]
[376164243,1753881047122,-460.0,0.00019918,2]
[376164245,1753881047132,-460.0,0.00019918,2]
[376164247,1753881047141,-549.35,0.00019918,2]
[376164249,1753881047154,-241.42250435,0.00019918,2]
[376164251,1753881047164,-151.0,0.00019918,2]
[376164253,1753881047173,-3062.56,0.00019918,2]
[376164255,1753881047182,-838.36,0.00019918,2]
[376164257,1753881047192,-1084.093601,0.00019921,2]
[376164259,1753881047201,-500.0,0.00019922,2]
[376164261,1753881047210,-694.48,0.00019989,2]
[376164263,1753881047219,-482.17,0.00019989,2]
[376164265,1753881047231,-460.0,0.0001999,2]
[376164267,1753881047245,-460.0,0.0001999,2]
[376164270,1753881047259,-460.0,0.0001999,2]
[376164272,1753881047273,-460.0,0.0001999,2]
[376164274,1753881047286,-151.0,0.0001999,2]
[376164277,1753881047298,-167.58134,0.0001999,2]
[376164279,1753881047311,-151.0,0.0001999,2]
[376164281,1753881047323,-167.58134,0.0001999,2]
[376164284,1753881047337,-151.0,0.0001999,2]
[376164286,1753881047350,-151.0,0.0001999,2]
[376164289,1753881047362,-151.0,0.0001999,2]
[376164291,1753881047376,-151.0,0.0001999,2]
[376164293,1753881047388,-460.0,0.0001999,2]
[376164296,1753881047401,-741.47,0.0001999,2]
[376164298,1753881047413,-154.67719564,0.0001999,2]
[376164300,1753881047424,-460.0,0.0001999,2]
[376164302,1753881047435,-460.0,0.0001999,2]
[376164305,1753881047448,-460.0,0.0001999,2]
[376164307,1753881047460,-460.0,0.0001999,2]
[376164309,1753881047473,-460.0,0.0001999,2]
[376164311,1753881047483,-460.0,0.0001999,2]
[376164314,1753881047493,-460.0,0.0001999,2]
[376164316,1753881047505,-151.0,0.0001999,2]
[376164318,1753881047517,-460.0,0.0001999,2]
[376164320,1753881047530,-712.59,0.0001999,2]
[376164323,1753881047543,-460.0,0.0001999,2]
[376164325,1753881047555,-1093.32,0.0001999,2]
[376164327,1753881047568,-460.0,0.0001999,2]
[376164330,1753881047580,-160.0,0.0002,2]
[376164332,1753881047593,-1304.35149659,0.00020003,2]
[376164334,1753881047606,-460.0,0.00020089,2]
[376164337,1753881047617,-705.08,0.00020089,2]
[376164339,1753881047627,-732.14,0.00020089,2]
[376164341,1753881047638,-460.0,0.00020189,2]
[376164343,1753881047649,-603.89,0.00020189,2]
[376164345,1753881047661,-460.0,0.0002019,2]
[376164348,1753881047675,-460.0,0.0002019,2]
[376164350,1753881047688,-460.0,0.0002019,2]
[376164352,1753881047699,-460.0,0.0002019,2]
[376164354,1753881047710,-460.0,0.0002019,2]
[376164357,1753881047721,-460.0,0.0002019,2]
[376164359,1753881047733,-460.0,0.0002019,2]
[376164361,1753881047746,-460.0,0.0002019,2]
[376164364,1753881047758,-460.0,0.0002019,2]
[376164366,1753881047770,-457.8,0.0002019,2]
[376164368,1753881047782,-460.0,0.0002019,2]
[376164370,1753881047792,-460.0,0.0002019,2]
[376164372,1753881047803,-294.19957101,0.0002019,2]
[376164374,1753881047814,-1478.72,0.0002019,2]
[376164376,1753881047825,-2853.84,0.0002019,2]
[376164378,1753881047836,-460.0,0.0002019,2]
[376164381,1753881047848,-623.86,0.0002019,2]
[376164383,1753881047859,-460.0,0.0002019,2]
[376164385,1753881047870,-460.0,0.0002019,2]
[376164387,1753881047881,-460.0,0.0002019,2]
[376164389,1753881047892,-460.0,0.0002019,2]
[376164391,1753881047904,-460.0,0.0002019,2]
[376164394,1753881047915,-460.0,0.0002019,2]
[376164396,1753881047925,-460.0,0.0002019,2]
[376164398,1753881047936,-460.0,0.00020191,2]
[376164400,1753881047947,-535.06132287,0.00020191,2]
[376164402,1753881047957,-460.0,0.00020191,2]
[376164404,1753881047969,-151.0,0.00020192,2]
[376164406,1753881047980,-151.0,0.00020192,2]
[376164409,1753881047991,-151.0,0.00020192,2]
[376164411,1753881048002,-183.184476,0.00020192,2]
[376164413,1753881048014,-306.435197,0.00020192,2]
[376164415,1753881048025,-306.435197,0.00020192,2]
[376164418,1753881048037,-151.0,0.00020192,2]
[376164420,1753881048048,-151.070845,0.00020192,2]
[376164422,1753881048060,-151.0,0.00020192,2]
[376164424,1753881048072,-151.0,0.00020192,2]
[376164427,1753881048086,-460.0,0.00020192,2]
[376164429,1753881048097,-329.520935,0.00020192,2]
[376164431,1753881048108,-329.520935,0.00020192,2]
[376164433,1753881048119,-3062.56,0.00020192,2]
[376164435,1753881048130,-838.36,0.00020192,2]
[376164437,1753881048141,-694.48,0.00020263,2]
[376164439,1753881048153,-462.41638643,0.00020264,2]
[376164441,1753881048166,-460.0,0.00020264,2]
[376164444,1753881048177,-342.5,0.00020264,2]
[376164446,1753881048187,-151.0,0.00020264,2]
[376164448,1753881048198,-151.0,0.00020264,2]
[376164450,1753881048209,-151.0,0.00020264,2]
[376164452,1753881048220,-460.0,0.00020264,2]
[376164454,1753881048230,-741.47,0.00020264,2]
[376164456,1753881048242,-460.0,0.00020264,2]
[376164459,1753881048253,-468.9,0.00020264,2]
[376164461,1753881048265,-460.0,0.00020264,2]
[376164463,1753881048276,-460.0,0.00020264,2]
[376164465,1753881048287,-460.0,0.00020264,2]
[376164467,1753881048298,-460.0,0.00020264,2]
[376164469,1753881048309,-460.0,0.00020264,2]
[376164472,1753881048320,-712.59,0.00020264,2]
[376164474,1753881048331,-460.0,0.00020264,2]
[376164476,1753881048342,-1093.32,0.00020264,2]
[376164478,1753881048353,-1304.35149659,0.00020279,3]
[376164480,1753881048364,-357.28,0.00020353,3]
[376164482,1753881048374,-151.0,0.00020363,2]
[376164485,1753881048385,-460.0,0.00020363,2]
[376164487,1753881048396,-705.08,0.00020363,2]
[376164489,1753881048406,-732.14,0.00020363,2]
[376164491,1753881048418,-221.914402,0.00020383,2]
[376164511,1753881048637,-151.0,0.00020383,2]
[376164512,1753881048648,-328.41,0.00020463,2]
[376164513,1753881048660,-603.89,0.00020463,2]
[376164514,1753881048672,-460.0,0.00020464,2]
[376164515,1753881048683,-460.0,0.00020464,2]
[376164516,1753881048695,-460.0,0.00020464,2]
[376164517,1753881048707,-511.65,0.00020464,2]
[376164518,1753881048856,-460.0,0.00020464,2]
[376164519,1753881048872,-460.0,0.00020464,2]
[376164520,1753881048882,-460.0,0.00020464,2]
[376164522,1753881048891,-460.0,0.00020464,2]
[376164523,1753881048901,-460.0,0.00020464,2]
[376164525,1753881048910,-460.0,0.00020464,2]
[376164527,1753881048920,-1478.72,0.00020464,2]
[376164529,1753881048929,-2853.84,0.00020464,2]
[376164531,1753881048938,-311.52,0.00020464,2]
[376164533,1753881048947,-623.86,0.00020464,2]
[376164535,1753881048956,-460.0,0.00020464,2]
[376164537,1753881048966,-460.0,0.00020464,2]
[376164539,1753881048976,-562.45,0.00020464,2]
[376164541,1753881048985,-460.0,0.00020464,2]
[376164543,1753881048995,-460.0,0.00020464,2]
[376164545,1753881049004,-236.38,0.00020464,2]
[376164547,1753881049014,-460.0,0.00020464,2]
[376164549,1753881049023,-460.0,0.00020465,2]
[376164551,1753881049032,-460.0,0.00020465,2]
[376164553,1753881049041,-472.21419956,0.00020466,2]
[376164555,1753881049051,-3062.56,0.00020466,2]
[376164557,1753881049060,-838.36,0.00020466,2]
[376164559,1753881049070,-420.0,0.00020515,2]
[376164561,1753881049083,-480.0,0.00020516,2]
[376164563,1753881049093,-694.48,0.00020537,2]
[376164565,1753881049103,-500.0,0.00020537,2]
[376164567,1753881049112,-449.33726479,0.00020537,2]
[376164569,1753881049122,-601.32,0.00020538,2]
[376164571,1753881049131,-460.0,0.00020538,2]
[376164573,1753881049140,-741.47,0.00020538,2]
[376164575,1753881049151,-151.0,0.00020538,2]
[376164577,1753881049161,-200.19311331,0.00020538,2]
[376164579,1753881049170,-219.94,0.00020538,2]
[376164581,1753881049179,-454.52964196,0.00020538,2]
[376164583,1753881049188,-460.0,0.00020538,2]
[376164585,1753881049198,-208.48,0.00020538,2]
[376164587,1753881049207,-712.59,0.00020538,2]
[376164589,1753881049217,-460.0,0.00020538,2]
[376164591,1753881049226,-1093.32,0.00020538,2]
[376164593,1753881049235,-260.0,0.00020548,2]
[376164595,1753881049245,-1304.35149659,0.00020555,3]
[376164597,1753881049256,-460.0,0.00020637,2]
[376164599,1753881049266,-705.08,0.00020637,2]
[376164601,1753881049276,-732.14,0.00020637,2]
[376164603,1753881049286,-603.89,0.00020737,2]
[376164604,1753881049295,-281.04808827,0.00020738,2]
[376164606,1753881049305,-303.89,0.00020738,2]
[376164608,1753881049315,-475.66749984,0.00020738,2]
[376164610,1753881049325,-460.0,0.00020738,2]
[376164612,1753881049334,-460.0,0.00020738,2]
[376164614,1753881049345,-506.33,0.00020738,2]
[376164616,1753881049355,-460.0,0.00020738,2]
[376164618,1753881049364,-460.0,0.00020738,2]
[376164620,1753881049373,-1478.72,0.00020738,2]
[376164622,1753881049383,-2853.84,0.00020738,2]
[376164624,1753881049392,-623.86,0.00020738,2]
[376164626,1753881049401,-460.0,0.00020738,2]
[376164628,1753881049410,-460.0,0.00020738,2]
[376164630,1753881049420,-460.0,0.00020738,2]
[376164632,1753881049430,-281.14,0.00020738,2]
[376164634,1753881049440,-604.0,0.00020739,2]
[376164636,1753881049449,-460.0,0.00020739,2]
[376164638,1753881049459,-3062.56,0.0002074,2]
[376164640,1753881049468,-838.36,0.0002074,2]
[376164642,1753881049478,-694.48,0.00020811,2]
[376164644,1753881049487,-460.0,0.00020812,2]
[376164646,1753881049497,-741.47,0.00020812,2]
[376164648,1753881049506,-460.0,0.00020812,2]
[376164650,1753881049515,-712.59,0.00020812,2]
[376164652,1753881049527,-460.0,0.00020812,2]
[376164654,1753881049536,-1093.32,0.00020812,2]
[376164656,1753881049545,-150.032937,0.00020825,15]
[376164658,1753881049554,-1304.35149659,0.00020831,4]
[376164660,1753881049563,-150.032937,0.00020871,15]
[376164662,1753881049572,-460.0,0.00020911,2]
[376164664,1753881049582,-705.08,0.00020911,2]
[376164666,1753881049591,-732.14,0.00020911,2]
[376164668,1753881049603,-151.648838,0.00020912,2]
[376164670,1753881049612,-197.906727,0.0002099,2]
[376164672,1753881049621,-151.0,0.0002099,2]
[376164674,1753881049630,-151.0,0.0002099,2]
[376164676,1753881049641,-151.0,0.0002099,2]
[376164677,1753881049650,-151.0,0.0002099,2]
[376164679,1753881049660,-151.0,0.0002099,2]
[376164681,1753881049669,-2000.0,0.00020998,3]
[376164683,1753881049679,-151.0,0.00020998,2]
[376164685,1753881049688,-603.89,0.00021011,2]
[376164687,1753881049698,-460.0,0.00021012,2]
[376164689,1753881049707,-460.0,0.00021012,2]
[376164691,1753881049716,-460.0,0.00021012,2]
[376164693,1753881049726,-460.0,0.00021012,2]
[376164695,1753881049736,-1478.72,0.00021012,2]
[376164697,1753881049745,-2853.84,0.00021012,2]
[376164700,1753881049755,-623.86,0.00021012,2]
[376164702,1753881049764,-460.0,0.00021012,2]
[376164704,1753881049774,-460.0,0.00021012,2]
[376164706,1753881049784,-460.0,0.00021013,2]
[376164707,1753881049794,-3062.56,0.00021014,2]
[376164709,1753881049803,-838.36,0.00021014,2]
[376164711,1753881049813,-282.1,0.00021034,3]
[376164712,1753881049823,-1000.0,0.00021041,3]
[376164714,1753881049833,-1571.06543619,0.00021075,2]
[376164716,1753881049842,-1423.0,0.00021083,2]
[376164718,1753881049852,-694.48,0.00021085,2]
[376164720,1753881049862,-460.0,0.00021086,2]
[376164722,1753881049871,-741.47,0.00021086,2]
[376164724,1753881049880,-460.0,0.00021086,2]
[376164726,1753881049889,-712.59,0.00021086,2]
[376164728,1753881049899,-460.0,0.00021086,2]
[376164730,1753881049909,-1093.32,0.00021086,2]
[376164732,1753881049918,-2024.21,0.00021089,3]
[376164734,1753881049927,-241.326116,0.00021089,2]
[376164735,1753881049937,-151.0,0.00021089,2]
[376164737,1753881049946,-151.0,0.00021089,2]
[376164739,1753881049955,-151.0,0.00021089,2]
[376164741,1753881049965,-360.0,0.00021096,2]
[376164743,1753881049974,-1423.0,0.00021105,2]
[376164745,1753881049983,-1304.35149659,0.00021107,4]
[376164747,1753881049993,-200.0,0.00021127,2]
[376164749,1753881050002,-1827.0,0.00021127,2]
[376164751,1753881050011,-4000.0,0.00021128,3]
[376164753,1753881050020,-167.58134,0.00021128,2]
[376164755,1753881050029,-167.58134,0.00021128,2]
[376164757,1753881050039,-151.0,0.00021128,2]
[376164759,1753881050048,-4937.98363758,0.0002113,3]
[376164760,1753881050057,-214.87999826,0.0002113,3]
[376164762,1753881050067,-312.16666667,0.0002113,3]
[376164764,1753881050080,-153.0,0.00021147,2]
[376164766,1753881050089,-153.0,0.00021159,2]
[376164768,1753881050098,-200.0,0.00021163,15]
[376164770,1753881050108,-200.0,0.00021163,15]
[376164772,1753881050117,-200.0,0.00021163,15]
[376164774,1753881050126,-200.0,0.00021163,15]
[376164776,1753881050136,-200.0,0.00021163,15]
[376164778,1753881050146,-200.0,0.00021163,15]
[376164780,1753881050155,-200.0,0.00021163,15]
[376164782,1753881050165,-200.0,0.00021163,15]
[376164784,1753881050175,-200.0,0.00021163,15]
[376164786,1753881050184,-200.0,0.00021163,15]
[376164788,1753881050193,-200.0,0.00021163,15]
[376164790,1753881050202,-200.0,0.00021163,15]
[376164792,1753881050211,-200.0,0.00021163,15]
[376164793,1753881050220,-200.0,0.00021163,15]
[376164795,1753881050229,-200.0,0.00021163,15]
[376164797,1753881050238,-200.0,0.00021163,15]
[376164799,1753881050247,-200.0,0.00021163,15]
[376164801,1753881050257,-200.0,0.00021163,15]
[376164803,1753881050267,-200.0,0.00021163,15]
[376164805,1753881050276,-200.0,0.00021163,15]
[376164807,1753881050287,-200.0,0.00021163,15]
[376164809,1753881050298,-280.0,0.00021163,15]
[376164811,1753881050307,-1000.0,0.00021168,3]
[376164813,1753881050316,-460.0,0.00021185,2]
[376164815,1753881050325,-705.08,0.00021185,2]
[376164817,1753881050334,-732.14,0.00021185,2]
[376164819,1753881050343,-4000.0,0.00021199,3]
[376164821,1753881050353,-1423.0,0.00021225,2]
[376164823,1753881050362,-1827.0,0.00021254,2]
[376164825,1753881050372,-603.89,0.00021285,2]
[376164827,1753881050381,-252.5,0.00021286,2]
[376164829,1753881050391,-191.1,0.00021286,2]
[376164831,1753881050399,-460.0,0.00021286,2]
[376164833,1753881050408,-460.0,0.00021286,2]
[376164835,1753881050417,-136.729467,0.00021286,2]
[376164845,1753881050512,-1341.990533,0.00021286,2]
[376164847,1753881050522,-2853.84,0.00021286,2]
[376164849,1753881050532,-623.86,0.00021286,2]
[376164851,1753881050541,-460.0,0.00021286,2]
[376164853,1753881050551,-460.0,0.00021286,2]
[376164855,1753881050559,-460.0,0.00021287,2]
[376164857,1753881050568,-3062.56,0.00021288,2]
[376164859,1753881050577,-838.36,0.00021288,2]
[376164861,1753881050587,-504.73741654,0.00021293,2]
[376164863,1753881050596,-500.0,0.00021293,2]
[376164865,1753881050605,-1827.0,0.00021295,2]
[376164867,1753881050615,-3000.0,0.00021298,3]
[376164869,1753881050624,-263.0,0.00021318,2]
[376164871,1753881050633,-694.48,0.00021359,2]
[376164873,1753881050643,-460.0,0.0002136,2]
[376164875,1753881050653,-741.47,0.0002136,2]
[376164877,1753881050662,-460.0,0.0002136,2]
[376164879,1753881050672,-712.59,0.0002136,2]
[376164881,1753881050682,-460.0,0.0002136,2]
[376164883,1753881050691,-620.54205046,0.0002136,2]
[376164928,1753881051130,-460.0,0.0001882,2]
[376164929,1753881051140,-460.0,0.00020264,2]
[376164931,1753881051150,-460.0,0.00020538,2]
[376164933,1753881051160,-460.0,0.00020738,2]
[376164935,1753881051169,-471.56998558,0.00020812,2]
[376164937,1753881051179,-460.0,0.00021012,2]
[376164939,1753881051189,-460.0,0.00021286,2]
[376164941,1753881051198,-472.77794954,0.0002136,2]
[376164943,1753881051208,-282.1,0.00021363,4]
[376164945,1753881051217,-263.0,0.00021364,2]
[376164947,1753881051226,-263.0,0.00021374,2]
[376164949,1753881051236,-1304.35149659,0.00021383,5]
[376164951,1753881051245,-263.0,0.0002143,2]
[376164953,1753881051255,-279.03,0.00021459,2]
[376164955,1753881051264,-217.25865435,0.00021459,2]
[376166059,1753881311453,24900.0,0.00018685,2]
[376166076,1753881713198,10000.0,0.00023,30]
[376166098,1753882049813,163.559441,0.00013699,2]
[376166107,1753882119474,150.999999,0.0002,120]
[376166188,1753882237906,-480.0,0.00018817,2]
[376166189,1753882237919,-300.0,0.00018817,2]
[376166190,1753882237928,-460.0,0.00018818,2]
[376166191,1753882237938,-460.0,0.00018818,2]
[376166192,1753882237947,-460.0,0.00018818,2]
[376166193,1753882237957,-256.15951211,0.00018818,2]
[376166194,1753882237968,-203.84048789,0.00018818,2]
[376166195,1753882237977,-460.0,0.00018818,2]
[376166196,1753882237987,-460.0,0.00018818,2]
[376166197,1753882237996,-460.0,0.00018818,2]
[376166198,1753882238005,-373.80566081,0.00018818,2]
[376166249,1753882238597,-925.76433919,0.00018818,2]
[376166251,1753882238607,-460.0,0.00018818,2]
[376166253,1753882238617,-460.0,0.00018818,2]
[376166255,1753882238627,-460.0,0.00018818,2]
[376166257,1753882238636,-545.88,0.00018818,2]
[376166259,1753882238646,-550.24564176,0.00018818,2]
[376166261,1753882238655,-460.0,0.00018818,2]
[376166263,1753882238669,-105.69106338,0.00018818,2]
[376166266,1753882238685,-354.30893662,0.00018818,2]
[376166268,1753882238694,-460.0,0.00018818,2]
[376166271,1753882238704,-460.0,0.00018818,2]
[376166274,1753882238713,-211.49510336,0.00018818,2]
[376166276,1753882238724,-7.88743841,0.00018818,2]
[376166278,1753882238734,-460.0,0.00018818,2]
[376166280,1753882238744,-460.0,0.00018818,2]
[376166282,1753882238753,-202.88702681,0.00018818,2]
[376166440,1753882240219,-257.11297319,0.00018818,2]
[376166442,1753882240229,-460.0,0.00018818,2]
[376166444,1753882240238,-460.0,0.00018818,2]
[376166446,1753882240247,-460.0,0.00018818,2]
[376166448,1753882240257,-460.0,0.00018818,2]
[376166450,1753882240267,-460.0,0.00018818,2]
[376166452,1753882240276,-553.56,0.00018818,2]
[376166454,1753882240285,-460.0,0.00018818,2]
[376166456,1753882240294,-460.0,0.00018818,2]
[376166458,1753882240303,-460.0,0.00018818,2]
[376166460,1753882240312,-460.0,0.00018819,2]
[376166462,1753882240322,-460.0,0.00018819,2]
[376166464,1753882240331,-460.0,0.00018819,2]
[376166466,1753882240340,-460.0,0.00018819,2]
[376166468,1753882240349,-460.0,0.00018819,2]
[376166470,1753882240359,-460.0,0.00018819,2]
[376166472,1753882240369,-460.0,0.00018819,2]
[376166474,1753882240378,-460.0,0.00018819,2]
[376166476,1753882240387,-460.0,0.00018819,2]
[376166478,1753882240396,-460.0,0.00018819,2]
[376166480,1753882240405,-460.0,0.00018819,2]
[376166482,1753882240417,-460.0,0.00018819,2]
[376166484,1753882240427,-460.0,0.00018819,2]
[376166486,1753882240436,-460.0,0.00018819,2]
[376166488,1753882240446,-460.0,0.00018819,2]
[376166490,1753882240455,-398.32702681,0.00018819,2]
[376167016,1753882245682,-460.0,0.00018818,2]
[376167018,1753882245691,-61.67297319,0.00018819,2]
[376167020,1753882245701,-460.0,0.00018819,2]
[376167022,1753882245710,-460.0,0.00018819,2]
[376167024,1753882245719,-460.0,0.00018819,2]
[376167026,1753882245729,-472.65367511,0.00018819,2]
[376167028,1753882245738,-460.0,0.00018819,2]
[376167030,1753882245747,-460.0,0.00018819,2]
[376167032,1753882245757,-347.95595481,0.00018819,2]
[376167034,1753882245767,-463.66715179,0.00018819,2]
[376167036,1753882245776,-542.31893611,0.00018819,2]
[376167038,1753882245785,-460.0,0.00018819,2]
[376167040,1753882245794,-460.0,0.00018819,2]
[376167042,1753882245803,-460.0,0.00018819,2]
[376167044,1753882245813,-460.0,0.00018819,2]
[376167046,1753882245822,-460.0,0.00018819,2]
[376167048,1753882245831,-460.0,0.00018819,2]
[376167050,1753882245841,-460.0,0.00018819,2]
[376167052,1753882245850,-648.78,0.00018819,2]
[376167054,1753882245859,-511.67,0.00018819,2]
[376167056,1753882245868,-460.0,0.00018819,2]
[376167058,1753882245878,-460.0,0.00018819,2]
[376167061,1753882245887,-460.0,0.00018819,2]
[376167064,1753882245896,-460.0,0.00018819,2]
[376167067,1753882245906,-460.0,0.00018819,2]
[376167069,1753882245915,-460.0,0.00018819,2]
[376167071,1753882245927,-165.94225898,0.00018819,2]
[376167075,1753882245955,-294.05774102,0.00018819,2]
[376167077,1753882245965,-273.31050286,0.00018819,2]
[376167116,1753882246307,-186.68949714,0.00018819,2]
[376167118,1753882246316,-460.0,0.00018819,2]
[376167120,1753882246326,-460.0,0.00018819,2]
[376167122,1753882246335,-460.0,0.00018819,2]
[376167124,1753882246345,-460.0,0.00018819,2]
[376167126,1753882246354,-460.0,0.00018819,2]
[376167129,1753882246363,-460.0,0.00018819,2]
[376167131,1753882246372,-2934.7,0.00018819,2]
[376167133,1753882246382,-122.16154098,0.00018819,2]
[376167135,1753882246394,-264.91596639,0.00018819,2]
[376167140,1753882246431,-72.92249263,0.00018819,2]
[376167142,1753882246440,-460.0,0.00018819,2]
[376167144,1753882246449,-460.0,0.00018819,2]
[376167146,1753882246458,-460.0,0.00018819,2]
[376167148,1753882246467,-460.0,0.00018819,2]
[376167150,1753882246477,-460.0,0.00018819,2]
[376167152,1753882246488,-460.0,0.00018819,2]
[376167154,1753882246499,-460.0,0.00018819,2]
[376167156,1753882246508,-460.0,0.00018819,2]
[376167158,1753882246518,-460.0,0.00018819,2]
[376167160,1753882246527,-460.0,0.00018819,2]
[376167162,1753882246537,-460.0,0.00018819,2]
[376167164,1753882246546,-460.0,0.00018819,2]
[376167166,1753882246556,-460.0,0.00018819,2]
[376167168,1753882246567,-460.0,0.00018819,2]
[376167170,1753882246577,-460.0,0.00018819,2]
[376167172,1753882246586,-460.0,0.00018819,2]
[376167174,1753882246595,-460.0,0.00018819,2]
[376167176,1753882246605,-460.0,0.00018819,2]
[376167178,1753882246614,-460.0,0.00018819,2]
[376167180,1753882246624,-460.0,0.00018819,2]
[376167182,1753882246633,-460.0,0.00018819,2]
[376167184,1753882246642,-460.0,0.00018819,2]
[376167186,1753882246652,-460.0,0.00018819,2]
[376167188,1753882246661,-460.0,0.00018819,2]
[376167190,1753882246672,-460.0,0.00018819,2]
[376167192,1753882246681,-460.0,0.00018819,2]
[376167194,1753882246690,-460.0,0.00018819,2]
[376167196,1753882246699,-151.50289036,0.00018819,2]
[376167198,1753882246709,-255.46681126,0.00018819,2]
[376167200,1753882246718,-151.0,0.00018819,2]
[376167202,1753882246727,-157.83372107,0.00018819,2]
[376167204,1753882246736,-460.0,0.00018819,2]
[376167206,1753882246746,-460.0,0.00018819,2]
[376167208,1753882246756,-460.0,0.00018819,2]
[376167210,1753882246765,-460.0,0.00018819,2]
[376167212,1753882246775,-460.0,0.00018819,2]
[376167214,1753882246784,-460.0,0.00018819,2]
[376167216,1753882246793,-460.0,0.00018819,2]
[376167218,1753882246803,-460.0,0.00018819,2]
[376167220,1753882246812,-460.0,0.00018819,2]
[376167222,1753882246822,-607.67,0.00018819,2]
[376167224,1753882246831,-460.0,0.00018819,2]
[376167226,1753882246840,-460.0,0.00018819,2]
[376167228,1753882246849,-460.0,0.00018819,2]
[376167230,1753882246861,-460.0,0.00018819,2]
[376167233,1753882246873,-460.0,0.00018819,2]
[376167235,1753882246886,-460.0,0.00018819,2]
[376167237,1753882246899,-460.0,0.00018819,2]
[376167240,1753882246911,-507.68,0.00018819,2]
[376167242,1753882246924,-500.0,0.00018819,2]
[376167244,1753882246935,-500.0,0.00018819,2]
[376167246,1753882246947,-460.0,0.00018819,2]
[376167249,1753882246959,-247.56,0.00018819,2]
[376167251,1753882246971,-460.0,0.00018819,2]
[376167253,1753882246983,-460.0,0.00018819,2]